fUST/lending_fUST_20240411
["ID","MTS","AMOUNT","RATE_DAILY","PERIOD"]
[322117794,1712807349923,-2122.1648867,0.00029896,2]
[322117795,1712807349944,-1137.22623725,0.00029961,2]
[322117796,1712807349964,-166.666666,0.00029962,2]
[322117797,1712807349990,-12592.64641738,0.0002999,2]
[322117798,1712807356114,-386.11774254,0.00028806,4]
[322117799,1712807370112,-634.31743144,0.00025,2]
[322117800,1712807370134,-754.34968747,0.000275,2]
[322117801,1712807370158,-44.8074714,0.00028806,4]
[322117838,1712807438580,-39.88835562,0.00028806,4]
[322117839,1712807438591,-216.85339921,0.0002909,2]
[322117859,1712807439774,-8337.04715509,0.0002909,2]
[322117860,1712807439783,-1083.71943922,0.00029922,2]
[322117861,1712807439792,-656.87463642,0.00029989,17]
[322117862,1712807439801,-422.33876626,0.0002999,2]
[322117863,1712807439810,-400.0,0.00030135,2]
[322117864,1712807439820,-400.0,0.00030135,2]
[322117865,1712807439829,-500.0,0.00030136,2]
[322117866,1712807439838,-157.06623964,0.00030545,2]
[322117867,1712807439847,-157.06623964,0.00031706,2]
[322117868,1712807439855,-419.581533,0.00031759,2]
[322117869,1712807439865,-155.28480069,0.00032,4]
[322117870,1712807439874,-171.25704091,0.00032141,2]
[322117871,1712807439883,-737.59149432,0.00032473,4]
[322117872,1712807439891,-560.0,0.00032474,2]
[322117873,1712807439900,-319.91534022,0.00032866,30]
[322117874,1712807439909,-157.06623964,0.00032867,2]
[322117875,1712807439918,-229.0,0.00033,2]
[322117876,1712807439927,-560.0,0.00033149,2]
[322117877,1712807439936,-229.0,0.00033151,2]
[322117878,1712807439945,-196.063873,0.00033165,2]
[322117879,1712807439954,-166.666666,0.00033561,2]
[322117880,1712807439962,-161.05677,0.00033844,2]
[322117881,1712807439971,-157.06623964,0.00034028,2]
[322117882,1712807439980,-24900.0,0.00034422,2]
[322117883,1712807439990,-166.666666,0.00034476,2]
[322117884,1712807440101,-229.0,0.00034521,2]
[322117885,1712807440113,-1137.22623725,0.00034961,2]
[322117886,1712807440122,-561.0,0.00034995,2]
[322117887,1712807440131,-165.0,0.00035,2]
[322117888,1712807440140,-864.37983473,0.00035,30]
[322117889,1712807440150,-596.36211063,0.00035,2]
[322117890,1712807440159,-669.10203133,0.00035059,4]
[322117891,1712807440167,-171.25704091,0.00035061,2]
[322117892,1712807440177,-1018.927356,0.000351,19]
[322117893,1712807440186,-157.06623964,0.00035189,2]
[322117894,1712807440194,-166.666666,0.00035391,2]
[322117895,1712807440203,-1000.0,0.000356,19]
[322117896,1712807440212,-895.068353,0.00035616,120]
[322117897,1712807440221,-162.020611,0.00035827,2]
[322117898,1712807440229,-231.0,0.00036247,2]
[322117899,1712807440238,-166.666666,0.00036306,2]
[322117900,1712807440247,-157.06623964,0.0003635,2]
[322117901,1712807440256,-783.0,0.00036463,2]
[322117902,1712807440265,-9383.17985468,0.00037,2]
[322117903,1712807440274,-2114.60420043,0.00037,2]
[322117904,1712807440283,-166.666666,0.00037221,2]
[322117905,1712807440292,-157.06623964,0.00037512,2]
[322117906,1712807440300,-171.25704091,0.0003798,2]
[322117907,1712807440309,-166.666666,0.00038136,2]
[322117909,1712807440318,-229.0,0.00038663,14]
[322117911,1712807440327,-157.06623964,0.00038673,2]
[322117913,1712807440336,-196.063873,0.00038933,2]
[322117914,1712807440345,-175.037718,0.00039803,2]
[322117915,1712807440354,-157.06623964,0.00039834,2]
[322117916,1712807440362,-166.22814118,0.00039888,7]
[322117917,1712807440371,-365.23226862,0.00039999,4]
[322117918,1712807440381,-165.0,0.0004,2]
[322117919,1712807440390,-398.12624103,0.0004,120]
[322117920,1712807440399,-1000.0,0.0004,5]
[322117921,1712807440408,-1000.0,0.0004,5]
[322117922,1712807440417,-1000.0,0.0004,5]
[322117923,1712807440426,-1000.0,0.0004,5]
[322117924,1712807440435,-1000.0,0.0004,5]
[322117925,1712807440443,-1000.0,0.0004,5]
[322117926,1712807440452,-1000.0,0.0004,5]
[322117927,1712807440461,-1000.0,0.0004,5]
[322117928,1712807440472,-1000.0,0.0004,5]
[322117929,1712807440481,-1000.0,0.0004,5]
[322117930,1712807440490,-1000.0,0.0004,5]
[322117931,1712807440498,-187.6946,0.0004,5]
[322117932,1712807440508,-1000.0,0.0004,5]
[322117933,1712807440517,-1453.81854527,0.0004,10]
[322117934,1712807440526,-1453.81854527,0.0004,10]
[322117935,1712807440535,-1097.0,0.0004011,3]
[322117936,1712807440547,-500.0,0.00040168,120]
[322117937,1712807440557,-522.91,0.00040168,120]
[322117938,1712807440566,-500.0,0.00040168,120]
[322117939,1712807440574,-613.13,0.00040168,120]
[322117940,1712807440583,-161.05677,0.0004029,2]
[322117941,1712807440592,-150.46531321,0.00040895,30]
[322117942,1712807440600,-244.29784126,0.000409,2]
[322117943,1712807440610,-171.25704091,0.000409,2]
[322117944,1712807440619,-157.06623964,0.00040995,2]
[322117945,1712807440628,-955.10546747,0.00040997,4]
[322117946,1712807440638,-155.0970463,0.00040997,4]
[322117947,1712807440646,-157.64210936,0.00040997,4]
[322117948,1712807440656,-304.92213325,0.00040997,2]
[322117949,1712807440665,-733.65688556,0.00040997,4]
[322117950,1712807440675,-490.39175371,0.00040997,4]
[322117952,1712807440684,-216.45996331,0.00040997,4]
[322117953,1712807440694,-291.67835239,0.00040997,4]
[322117955,1712807440714,-155.76526378,0.00040997,4]
[322117957,1712807440724,-155.7465694,0.00040997,4]
[322117958,1712807440734,-155.38658969,0.00040998,4]
[322117960,1712807440744,-393.78297483,0.00040998,4]
[322117962,1712807440755,-802.38275602,0.00040998,4]
[322117964,1712807440764,-335.88017992,0.00040998,4]
[322117966,1712807440774,-484.12873589,0.00040998,2]
[322117968,1712807440783,-382.62437047,0.00040999,31]
[322117970,1712807440793,-459.70840603,0.00040999,31]
[322117972,1712807440803,-500.0,0.00040999,31]
[322117974,1712807440812,-422.85577051,0.00040999,31]
[322117976,1712807440821,-214.26630428,0.00040999,31]
[322117978,1712807440831,-500.0,0.00040999,31]
[322117980,1712807440840,-500.0,0.00040999,31]
[322117982,1712807440850,-509.03837555,0.00040999,31]
[322117984,1712807440859,-11773.53,0.00040999,2]
[322117985,1712807440868,-11773.53,0.00040999,2]
[322117987,1712807440878,-17697.05,0.00040999,2]
[322117988,1712807440889,-164.89140023,0.00040999,30]
[322117990,1712807440898,-160.0,0.00040999,30]
[322117992,1712807440908,-160.0,0.00040999,30]
[322117993,1712807440917,-18250.75453626,0.00041,5]
[322117994,1712807440927,-46056.13591223,0.00041,30]
[322118022,1712808194687,765.84554286,0.00024124,5]
[322118023,1712808306617,389.40479141,0.00022911,5]
[322118027,1712808441112,-381.43284223,0.00024053,2]
[322118028,1712808496371,250.0,0.0002305,2]
[322118029,1712808529681,941.64227587,0.00022024,2]
[322118030,1712808551247,-193.09908054,0.00023846,2]
[322118031,1712808551269,-157.32816173,0.00023847,2]
[322118032,1712808551290,-3719.84092639,0.00023944,2]
[322118033,1712808551311,-154.92253873,0.00023944,2]
[322118034,1712808551334,-263.56036207,0.00023945,2]
[322118035,1712808551354,-887.19168702,0.00023945,2]
[322118036,1712808551375,-364.77396862,0.00023945,2]
[322118037,1712808551396,-687.50427823,0.00023945,2]
[322118038,1712808551415,-2617.32975732,0.00023945,2]
[322118039,1712808551436,-524.95978901,0.00023946,2]
[322118040,1712808551457,-154.92253873,0.00023946,2]
[322118041,1712808551480,-300.0,0.00023946,2]
[322118042,1712808551502,-300.0,0.00023946,2]
[322118043,1712808551524,-1043.3259765,0.00023947,2]
[322118044,1712808551653,-435.93996497,0.00023947,2]
[322118045,1712808551675,-211.50234221,0.00023947,2]
[322118046,1712808551696,-1854.38399609,0.00023947,2]
[322118047,1712808551717,-282.87085409,0.00023947,2]
[322118048,1712808551741,-185.68184053,0.00023948,2]
[322118049,1712808551763,-154.92253873,0.00023948,2]
[322118050,1712808551787,-22755.98720092,0.00023948,2]
[322118051,1712808551807,-5786.1213342,0.00023949,2]
[322118052,1712808551828,-188.71573999,0.00023949,2]
[322118053,1712808551849,-154.92253873,0.00023949,2]
[322118054,1712808551872,-242.86748276,0.00023949,2]
[322118055,1712808551893,-1494.03785259,0.00023949,2]
[322118056,1712808551914,-3737.50409594,0.00023949,2]
[322118057,1712808551933,-154.92253873,0.0002395,2]
[322118058,1712808551954,-154.92253873,0.0002395,2]
[322118059,1712808551973,-1308.15892502,0.0002395,2]
[322118060,1712808551993,-1486.45349515,0.0002395,2]
[322118061,1712808552013,-470.227429,0.0002395,2]
[322118062,1712808552033,-283.48016999,0.00023951,2]
[322118063,1712808552054,-936.52982101,0.00023951,2]
[322118064,1712808552073,-361.03908347,0.00023951,2]
[322118065,1712808552095,-277.18296708,0.00023951,2]
[322118066,1712808552115,-925.31693807,0.00023951,2]
[322118067,1712808552135,-1931.50577547,0.00023951,2]
[322118068,1712808552155,-1617.89538684,0.00023951,2]
[322118069,1712808552176,-207.33993593,0.00023951,2]
[322118070,1712808552197,-674.10491325,0.00023952,2]
[322118071,1712808552217,-548.9788122,0.00024045,2]
[322118072,1712808552237,-947.60613541,0.00024046,2]
[322118073,1712808552257,-170.92149901,0.00024047,2]
[322118074,1712808552277,-166.30230481,0.00024047,2]
[322118075,1712808552298,-59008.25304668,0.00024048,2]
[322118076,1712808552317,-229.27466344,0.00024049,2]
[322118077,1712808552337,-154.92253873,0.00024049,2]
[322118078,1712808552356,-157.51388772,0.00024053,2]
[322118079,1712808552376,-518.5419639,0.00024058,2]
[322118080,1712808552396,-24900.0,0.00024062,2]
[322118081,1712808552416,-1216.36854,0.00024448,2]
[322118082,1712808552436,-360.85132278,0.00024452,2]
[322118083,1712808552456,-640.33649532,0.00024452,2]
[322118084,1712808552476,-504.87895576,0.00024452,2]
[322118085,1712808552496,-500.0,0.00024452,2]
[322118086,1712808552516,-500.0,0.00024452,2]
[322118087,1712808552536,-500.0,0.00024452,2]
[322118088,1712808552557,-500.0,0.00024452,2]
[322118089,1712808552578,-218.10666493,0.00024452,2]
[322118090,1712808552601,-564.68381455,0.00024452,2]
[322118091,1712808552622,-661.7207907,0.00024453,2]
[322118092,1712808552645,-157.32816166,0.00024584,2]
[322118093,1712808552667,-157.32816166,0.00025321,2]
[322118094,1712808552736,-4647.52171751,0.00025352,2]
[322118095,1712808552756,-430.57981556,0.00025457,2]
[322118096,1712808552776,-331.45689628,0.00025457,2]
[322118097,1712808552799,-5983.19899425,0.00025458,2]
[322118098,1712808552820,-167.06533239,0.0002546,2]
[322118099,1712808552844,-155.84457082,0.00025465,2]
[322118100,1712808552863,-175.0377183,0.00025677,2]
[322118101,1712808552884,-420.0,0.0002597,2]
[322118102,1712808552904,-4647.52171749,0.00026191,2]
[322118103,1712808552925,-420.0,0.00026341,2]
[322118104,1712808552945,-203.96205847,0.00026802,3]
[322118105,1712808552966,-248.56344425,0.00026803,2]
[322118106,1712808552986,-294.14905566,0.00026803,2]
[322118107,1712808553005,-9419.00851662,0.00026803,2]
[322118108,1712808553025,-181.27846716,0.00026803,2]
[322118109,1712808553046,-245.13013663,0.00026803,2]
[322118110,1712808553067,-562.79218199,0.00026803,2]
[322118111,1712808553090,-409.4777541,0.00026803,2]
[322118112,1712808553111,-1087.22335945,0.00026803,2]
[322118113,1712808553136,-871.70917006,0.00026803,2]
[322118114,1712808553156,-421.84918282,0.00026803,2]
[322118115,1712808553176,-411.1728042,0.00026803,2]
[322118116,1712808553195,-155.12033445,0.00026803,2]
[322118117,1712808553216,-343.5456132,0.00026803,2]
[322118118,1712808553236,-254.76511583,0.00026803,2]
[322118119,1712808553259,-246.63761013,0.00026803,2]
[322118120,1712808553279,-212.02280465,0.00026803,2]
[322118121,1712808553298,-213.64248224,0.00026803,2]
[322118122,1712808553318,-154.98450155,0.00026803,2]
[322118123,1712808553339,-155.21194845,0.00026803,2]
[322118124,1712808553358,-155.49310918,0.00026803,2]
[322118125,1712808553378,-160.86128477,0.00026803,2]
[322118126,1712808553398,-154.98450155,0.00026803,2]
[322118127,1712808553418,-154.98450155,0.00026803,2]
[322118128,1712808553438,-209.13909189,0.00026803,2]
[322118129,1712808553457,-2764.87754133,0.00026803,2]
[322118130,1712808553477,-155.38550979,0.00026803,2]
[322118131,1712808553498,-602.31911649,0.00026803,2]
[322118132,1712808553517,-245.59351282,0.00026803,2]
[322118133,1712808553538,-243.4689664,0.00026803,2]
[322118134,1712808553558,-218.22626549,0.00026803,2]
[322118135,1712808553579,-155.56965635,0.00026803,2]
[322118136,1712808553601,-156.56577036,0.00026804,2]
[322118137,1712808553621,-155.43645785,0.00026805,2]
[322118138,1712808553641,-871.69841526,0.00026805,2]
[322118139,1712808553661,-158.51515046,0.00026805,2]
[322118140,1712808553681,-179.64211488,0.00026805,2]
[322118141,1712808553701,-617.07485229,0.00026805,2]
[322118142,1712808553722,-209.82604441,0.00026805,2]
[322118143,1712808553742,-2121.15236818,0.00026805,2]
[322118144,1712808553761,-287.43704093,0.00027,2]
[322118145,1712808553784,-941.64227587,0.00027024,2]
[322118146,1712808553805,-4647.52171749,0.00027029,2]
[322118147,1712808553825,-500.0,0.00027397,2]
[322118148,1712808553845,-530.87709462,0.00027397,2]
[322118149,1712808553866,-500.0,0.00027397,2]
[322118150,1712808553886,-500.0,0.00027397,2]
[322118151,1712808553907,-500.0,0.00027397,2]
[322118152,1712808553927,-500.0,0.00027397,2]
[322118153,1712808553947,-162.498776,0.00027397,2]
[322118154,1712808553967,-166.666666,0.00027397,2]
[322118155,1712808553987,-272.15441,0.00027397,2]
[322118156,1712808554009,-11377.52952334,0.000275,2]
[322118157,1712808554029,-656.87463642,0.000275,17]
[322118158,1712808554049,-178.52894,0.00027504,2]
[322118159,1712808554070,-4647.52171749,0.00027868,2]
[322118160,1712808554174,-166.666666,0.00028038,2]
[322118161,1712808554196,-587.0,0.00028164,2]
[322118162,1712808554215,-2000.0,0.0002867,2]
[322118163,1712808554236,-166.666666,0.00028679,2]
[322118164,1712808554259,-4647.52171749,0.00028706,2]
[322118165,1712808554279,-216.45996331,0.00028768,2]
[322118166,1712808554299,-155.38658969,0.00028768,2]
[322118167,1712808554319,-304.92213325,0.00028768,2]
[322118168,1712808554342,-291.67835239,0.00028768,2]
[322118169,1712808554362,-490.39175371,0.00028768,2]
[322118170,1712808554382,-160.4975497,0.00028769,10]
[322118171,1712808554401,-160.0,0.00028769,10]
[322118172,1712808554420,-161890.12319532,0.0002877,2]
[322118173,1712808560104,-240.81178809,0.00023846,2]
[322118174,1712808560127,-157.32816166,0.00026058,2]
[322118175,1712808560147,-2499.21835268,0.0002877,2]
[322118176,1712808564094,-150.90945433,0.00026794,2]
[322118177,1712808564130,-6.41870733,0.00026794,2]
[322118178,1712808564151,-8259.68289601,0.0002877,2]
[322118179,1712808564172,-151.0,0.0002877,2]
[322118180,1712808564194,-286.378564,0.0002877,2]
[322118181,1712808564214,-286.378564,0.0002877,2]
[322118182,1712808564234,-151.0,0.0002877,2]
[322118183,1712808564255,-151.0,0.0002877,2]
[322118184,1712808564275,-151.0,0.0002877,2]
[322118185,1712808564295,-151.0,0.0002877,2]
[322118186,1712808564314,-166.677522,0.0002877,2]
[322118187,1712808564334,-166.677522,0.0002877,2]
[322118188,1712808564356,-154.98450155,0.00028806,2]
[322118189,1712808564375,-169.57708231,0.0002889,2]
[322118190,1712808564395,-587.0,0.00028975,2]
[322118191,1712808564415,-739.03421313,0.0002899,2]
[322118192,1712808564435,-166.666666,0.00029321,2]
[322118193,1712808566224,93.36322863,0.00027531,2]
[322118213,1712808632852,-327.72494088,0.00025801,2]
[322118214,1712808632907,-493.41598756,0.00025801,2]
[322118215,1712808632917,-1160.07356209,0.00025802,2]
[322118216,1712808632927,-647.0036781,0.00027093,2]
[322118217,1712808632937,-63.96493303,0.00027531,2]
[322118218,1712808632948,-157.32816166,0.00028268,2]
[322118220,1712808632960,-621.35018391,0.00028447,2]
[322118222,1712808632971,-157.32816166,0.00029005,2]
[322118224,1712808632981,-166.666666,0.00029019,2]
[322118226,1712808632993,-754.34968747,0.00029321,2]
[322118227,1712808633003,-157.32816166,0.00029742,2]
[322118228,1712808633013,-300.0,0.00029779,2]
[322118230,1712808633024,-291.62715766,0.00029779,2]
[322118232,1712808633039,-8.37284234,0.00029779,2]
[322118234,1712808633049,-12045.31477919,0.0002978,10]
[322118241,1712808638349,-418.70538022,0.0002978,10]
[322118242,1712808638359,-166.666666,0.0002981,2]
[322118243,1712808638368,-620.0675092,0.0002987,2]
[322118244,1712808638377,-162.595641,0.0003,5]
[322118245,1712808638386,-155.0970463,0.0003,4]
[322118246,1712808638395,-155.76526378,0.0003,4]
[322118247,1712808638406,-155.15751432,0.0003,4]
[322118248,1712808638415,-500.0,0.00030136,2]
[322118249,1712808638424,-157.32816166,0.00030479,2]
[322118250,1712808638433,-166.666666,0.00030601,2]
[322118251,1712808638442,-1959.00337842,0.00031,2]
[322118252,1712808638451,-157.32816166,0.00031216,2]
[322118253,1712808638461,-620.00337546,0.00031363,2]
[322118254,1712808638470,-166.666666,0.00031392,2]
[322118255,1712808638478,-157.32816166,0.00031953,2]
[322118256,1712808638487,-155.28480069,0.00032,4]
[322118257,1712808638496,-420.0,0.00032102,2]
[322118258,1712808638505,-166.666666,0.00032183,2]
[322118259,1712808638516,-1083.71943922,0.00032232,2]
[322118260,1712808638525,-425.0,0.0003236,2]
[322118261,1712808638534,-15696.6014,0.0003236,30]
[322118262,1712808638543,-157.32816166,0.00032689,2]
[322118263,1712808638552,-420.0,0.00032757,2]
[322118264,1712808638561,-620.00016877,0.00032931,2]
[322118266,1712808638571,-166.666666,0.00032975,2]
[322118267,1712808638580,-319.91534022,0.00032998,30]
[322118269,1712808638589,-696.6974563,0.00032999,4]
[322118270,1712808638599,-1000.0,0.00033,4]
[322118271,1712808638608,-151.0,0.00033,2]
[322118273,1712808638618,-151.0,0.00033,2]
[322118274,1712808638627,-325.87926,0.00033,2]
[322118276,1712808638637,-325.87926,0.00033,2]
[322118277,1712808638646,-272.15441,0.00033165,2]
[322118279,1712808638656,-286.378564,0.00033251,2]
[322118281,1712808638665,-286.378564,0.00033251,2]
[322118282,1712808638675,-151.0,0.00033251,2]
[322118284,1712808638683,-277.26844,0.00033251,2]
[322118285,1712808638693,-166.677522,0.00033251,2]
[322118287,1712808638702,-166.677522,0.00033251,2]
[322118288,1712808638711,-151.0,0.00033264,2]
[322118290,1712808638721,-157.32816166,0.00033426,2]
[322118292,1712808638730,-157.32816166,0.00034163,2]
[322118293,1712808638739,-4997.86688767,0.00034604,4]
[322118295,1712808638748,-1997.15440807,0.00034604,4]
[322118296,1712808638757,-1401.78154232,0.00034605,4]
[322118298,1712808638766,-631.78349385,0.00034605,4]
[322118300,1712808638775,-354.11181084,0.00034605,4]
[322118301,1712808638784,-2173.75579806,0.00034606,4]
[322118303,1712808638794,-705.32025395,0.00034606,4]
[322118305,1712808638806,-587.0,0.00034607,2]
[322118306,1712808638815,-157.32816166,0.000349,2]
[322118308,1712808638824,-405.940475,0.00034984,2]
[322118309,1712808638833,-405.940475,0.00034984,2]
[322118311,1712808638842,-151.0,0.00034984,2]
[322118312,1712808638851,-10249.22553671,0.00035,2]
[322118314,1712808638861,-864.37983473,0.00035,30]
[322118316,1712808638870,-669.10203133,0.00035,4]
[322118317,1712808638879,-274.42992657,0.00035051,7]
[322118319,1712808638888,-409.26312839,0.00035051,7]
[322118320,1712808638897,-469.40514437,0.00035051,7]
[322118322,1712808638907,-216.37669533,0.00035051,7]
[322118324,1712808638916,-365.43199948,0.00035051,7]
[322118325,1712808638925,-500.0,0.00035051,7]
[322118327,1712808638934,-596.36211063,0.00035052,2]
[322118329,1712808638943,-39559.50330212,0.00035052,4]
[322118331,1712808638958,-2295.68610361,0.00035052,4]
[322118332,1712808638969,-37426.53253798,0.00035052,4]
[322118334,1712808638979,-737.22362994,0.00035053,4]
[322118335,1712808638989,-738.81709765,0.000351,2]
[322118337,1712808638998,-1018.927356,0.000351,19]
[322118338,1712808639006,-1000.0,0.000356,19]
[322118340,1712808639016,-895.068353,0.00035616,120]
[322118341,1712808639024,-162.498776,0.00035827,2]
[322118343,1712808639033,-2449.49617815,0.00036,5]
[322118344,1712808639042,-587.0,0.00036033,2]
[322118346,1712808639052,-517.75086018,0.0003616,4]
[322118347,1712808639061,-166.22814118,0.00036654,7]
[322118349,1712808639070,-1216.36854,0.00036672,2]
[322118350,1712808639079,-241.85829277,0.00036897,4]
[322118352,1712808639088,-3525.11098134,0.00036898,4]
[322118353,1712808639098,-188.41737304,0.00036898,2]
[322118355,1712808639107,-284.47700355,0.00036898,4]
[322118356,1712808639116,-299.12969198,0.00036898,4]
[322118358,1712808639126,-484.47104536,0.00036898,4]
[322118359,1712808639135,-1235.31683636,0.00036898,4]
[322118361,1712808639144,-156.53177183,0.00036898,4]
[322118362,1712808639153,-801.13928345,0.00036898,4]
[322118364,1712808639163,-679.17404374,0.00036898,4]
[322118365,1712808639173,-263.74952097,0.00036898,4]
[322118367,1712808639183,-257.7839477,0.00036898,4]
[322118368,1712808639192,-227.3739437,0.00036898,4]
[322118370,1712808639201,-2256.38372673,0.00036898,4]
[322118371,1712808639211,-233.62114203,0.00036898,4]
[322118373,1712808639220,-491.49203085,0.00036898,4]
[322118374,1712808639229,-386.0313262,0.00036898,4]
[322118375,1712808639238,-157.434215,0.00036898,4]
[322118376,1712808639248,-653.54366929,0.00036899,4]
[322118377,1712808639257,-437.29351751,0.00036899,4]
[322118378,1712808639266,-324.76490035,0.00036899,4]
[322118379,1712808639275,-242.71374682,0.00036899,4]
[322118380,1712808639284,-1166.50255339,0.000369,4]
[322118381,1712808639293,-2114.60420043,0.00037,2]
[322118382,1712808639302,-2696.57676849,0.00037127,30]
[322118383,1712808639311,-823.0,0.00037307,2]
[322118384,1712808639320,-229.0,0.00038,2]
[322118385,1712808639330,-584.07203715,0.00038628,4]
[322118386,1712808639339,-383.99154567,0.00038628,4]
[322118387,1712808639348,-801.41782181,0.00038628,4]
[322118388,1712808639357,-2837.7266533,0.00038628,4]
[322118389,1712808639366,-799.19959429,0.00038628,37]
[322118390,1712808639375,-155.88260566,0.00038629,4]
[322118391,1712808639385,-1313.19047025,0.00038629,4]
[322118392,1712808639394,-365.19998,0.00038629,4]
[322118393,1712808639406,-490.67957045,0.00038629,4]
[322118394,1712808639415,-269.03377573,0.00038629,4]
[322118395,1712808639425,-283.73543725,0.00038629,4]
[322118396,1712808639434,-229.0,0.0003863,14]
[322118397,1712808639443,-272.15441,0.00038933,2]
[322118398,1712808639453,-823.0,0.00039636,3]
[322118399,1712808639463,-8337.04715509,0.0003977,2]
[322118400,1712808639472,-286.378564,0.0003977,2]
[322118401,1712808639605,-286.378564,0.0003977,2]
[322118402,1712808639616,-151.0,0.0003977,2]
[322118403,1712808639625,-151.0,0.0003977,2]
[322118404,1712808639634,-166.677522,0.0003977,2]
[322118405,1712808639643,-166.677522,0.0003977,2]
[322118406,1712808639653,-151.0,0.0003977,2]
[322118407,1712808639662,-151.0,0.0003977,2]
[322118408,1712808639671,-325.87926,0.0003977,2]
[322118409,1712808639681,-325.87926,0.0003977,2]
[322118410,1712808639690,-36855.25369253,0.0003988,120]
[322118411,1712808639699,-1453.6732506,0.0004,10]
[322118412,1712808639708,-405.940475,0.0004,2]
[322118413,1712808639717,-405.940475,0.0004,2]
[322118414,1712808639726,-151.0,0.0004,2]
[322118415,1712808639736,-1453.81854527,0.0004,10]
[322118416,1712808639745,-500.0,0.00040168,120]
[322118417,1712808639754,-500.0,0.00040168,120]
[322118418,1712808639763,-500.0,0.00040168,120]
[322118419,1712808639772,-500.0,0.00040168,120]
[322118420,1712808639781,-526.18,0.00040168,120]
[322118421,1712808639790,-500.0,0.00040168,120]
[322118422,1712808639800,-522.91,0.00040168,120]
[322118423,1712808639810,-500.0,0.00040168,120]
[322118425,1712808639819,-613.13,0.00040168,120]
[322118427,1712808639828,-1152.0,0.00040218,5]
[322118429,1712808639837,-229.0,0.00040274,14]
[322118431,1712808639846,-157.26798371,0.0004059,3]
[322118433,1712808639855,-150.46531321,0.00040918,30]
[322118435,1712808639864,-155.430717,0.00040999,4]
[322118436,1712808639873,-7077.95,0.00040999,2]
[322118438,1712808639882,-7077.95,0.00040999,2]
[322118440,1712808639892,-7077.95,0.00040999,2]
[322118442,1712808639902,-7077.95,0.00040999,2]
[322118444,1712808639910,-7077.95,0.00040999,2]
[322118446,1712808639919,-7077.95,0.00040999,2]
[322118448,1712808639928,-7077.95,0.00040999,2]
[322118450,1712808639936,-7077.95,0.00040999,2]
[322118452,1712808639945,-7077.98,0.00040999,2]
[322118454,1712808639954,-151.0,0.00040999,2]
[322118456,1712808639963,-151.0,0.00040999,2]
[322118458,1712808639972,-108.12746266,0.00040999,2]
[322118460,1712808639984,-6969.86253734,0.00040999,2]
[322118462,1712808639994,-151.707028,0.00040999,2]
[322118464,1712808640003,-155.048341,0.00040999,2]
[322118466,1712808640012,-405.940475,0.00040999,2]
[322118468,1712808640021,-405.940475,0.00040999,2]
[322118470,1712808640030,-160.0,0.00040999,30]
[322118472,1712808640040,-164.89140023,0.00040999,30]
[322118474,1712808640049,-151.0,0.00040999,2]
[322118476,1712808640058,-286.378564,0.00040999,2]
[322118478,1712808640067,-286.378564,0.00040999,2]
[322118480,1712808640076,-151.0,0.00040999,2]
[322118482,1712808640086,-151.0,0.00040999,2]
[322118484,1712808640095,-166.677522,0.00040999,2]
[322118487,1712808640104,-166.677522,0.00040999,2]
[322118490,1712808640113,-169.931836,0.00040999,2]
[322118492,1712808640122,-484.12873589,0.00040999,2]
[322118495,1712808640131,-151.0,0.00040999,2]
[322118498,1712808640140,-325.87926,0.00040999,2]
[322118500,1712808640149,-325.87926,0.00040999,2]
[322118502,1712808640159,-15377.40257116,0.00041,5]
[322118527,1712808640391,-570.37036077,0.00041,5]
[322118534,1712808643838,-240.12376979,0.00026288,2]
[322118535,1712808643848,-43377.60943607,0.00027531,14]
[322118536,1712808643856,-2000.0,0.00040174,2]
[322118537,1712808643865,-74160.04411085,0.00041,5]
[322118543,1712808644001,-7297.46615926,0.00041,5]
[322118544,1712808644012,-112928.59756492,0.00041,30]
[322118546,1712808644021,-1061.3856405,0.00041,4]
[322118547,1712808644030,-398.12624103,0.00041,120]
[322118548,1712808644040,-295.8912181,0.00041,4]